fUSD/lending_fUSD_20240117
["ID","MTS","AMOUNT","RATE_DAILY","PERIOD"]
[311874078,1705482647806,-500.0,0.00021917,2]
[311874079,1705482647817,-500.0,0.00021917,2]
[311874080,1705482647828,-500.0,0.00021917,2]
[311874081,1705482647838,-748.65,0.00021917,2]
[311874082,1705482647848,-500.0,0.00021917,2]
[311874083,1705482647858,-500.0,0.00021917,2]
[311874084,1705482647867,-2311.82,0.00021917,2]
[311874085,1705482647876,-500.0,0.00021917,2]
[311874086,1705482647885,-1621.81,0.00021917,2]
[311874087,1705482647895,-907.93,0.00021917,2]
[311874088,1705482647905,-1983.07,0.00021917,2]
[311874089,1705482647914,-793.22,0.00021917,2]
[311874090,1705482647923,-524.81,0.00021917,2]
[311874091,1705482647932,-1141.21,0.00021917,2]
[311874092,1705482647941,-1534.88,0.00021917,2]
[311874093,1705482647950,-500.0,0.00021917,2]
[311874094,1705482647959,-803.7,0.00021917,2]
[311874095,1705482647968,-986.18,0.00021917,2]
[311874096,1705482647977,-1090.66,0.00021917,2]
[311874097,1705482647986,-321.27257354,0.00021917,2]
[311874098,1705482647995,-3239.3,0.00021917,2]
[311874099,1705482648004,-285.36779583,0.00021917,2]
[311874100,1705482648014,-500.0,0.00021917,2]
[311874101,1705482648023,-505.00387443,0.00021917,2]
[311874102,1705482648032,-1703.99,0.00021917,2]
[311874103,1705482648041,-500.0,0.00021917,2]
[311874104,1705482648051,-809.35,0.00021917,2]
[311874105,1705482648061,-1644.93,0.00021917,2]
[311874106,1705482648070,-500.0,0.00021917,2]
[311874107,1705482648079,-500.0,0.00021917,2]
[311874108,1705482648090,-622.27,0.00021917,2]
[311874109,1705482648109,-500.0,0.00021917,2]
[311874110,1705482648121,-800.46,0.00021917,2]
[311874111,1705482648131,-1048.56,0.00021917,2]
[311874112,1705482648142,-500.0,0.00021917,2]
[311874113,1705482648154,-5418.41,0.00021917,2]
[311874114,1705482648165,-1118.1,0.00021917,2]
[311874115,1705482648175,-2617.46,0.00021917,2]
[311874116,1705482648186,-500.0,0.00021917,2]
[311874117,1705482648196,-429.19761976,0.00021917,2]
[311874118,1705482648207,-1093.06,0.00021917,2]
[311874119,1705482648220,-500.0,0.00021917,2]
[311874120,1705482648231,-867.62,0.00021917,2]
[311874121,1705482648242,-500.0,0.00021917,2]
[311874122,1705482648253,-1186.48,0.00021917,2]
[311874123,1705482648263,-4227.71,0.00021917,2]
[311874124,1705482648273,-500.0,0.00021917,2]
[311874125,1705482648283,-1474.6,0.00021917,2]
[311874126,1705482648295,-1600.13,0.00021917,2]
[311874127,1705482648306,-500.0,0.00021917,2]
[311874128,1705482648318,-512.93173788,0.00021917,2]
[311874129,1705482648328,-2124.26,0.00021917,2]
[311874130,1705482648340,-1122.61,0.00021917,2]
[311874131,1705482648353,-1474.5,0.00021917,2]
[311874132,1705482648364,-500.0,0.00021917,2]
[311874133,1705482648374,-1102.27,0.00021917,2]
[311874134,1705482648384,-500.0,0.00021917,2]
[311874135,1705482648395,-678.87,0.00021917,2]
[311874136,1705482648406,-500.0,0.00021917,2]
[311874137,1705482648416,-500.0,0.00021917,2]
[311874138,1705482648427,-1565.62,0.00021917,2]
[311874139,1705482648437,-1896.28,0.00021917,2]
[311874140,1705482648447,-165.87595726,0.00021917,2]
[311874141,1705482648460,-1874.01,0.00021917,2]
[311874142,1705482648469,-500.0,0.00021917,2]
[311874143,1705482648480,-500.0,0.00021917,2]
[311874144,1705482648489,-1985.3,0.00021917,2]
[311874145,1705482648499,-500.0,0.00021917,2]
[311874146,1705482648508,-500.0,0.00021917,2]
[311874147,1705482648518,-500.0,0.00021917,2]
[311874148,1705482648527,-500.0,0.00021917,2]
[311874149,1705482648537,-500.0,0.00021917,2]
[311874150,1705482648547,-3054.66,0.00021917,2]
[311874151,1705482648557,-500.0,0.00021917,2]
[311874152,1705482648568,-500.0,0.00021917,2]
[311874153,1705482648577,-2661.31,0.00021917,2]
[311874154,1705482648587,-500.0,0.00021917,2]
[311874155,1705482648598,-523.27,0.00021917,2]
[311874156,1705482648608,-30195.6,0.00021917,2]
[311874157,1705482648618,-22745.11,0.00021917,2]
[311874158,1705482648627,-511.89328005,0.00021917,2]
[311874159,1705482648638,-500.0,0.00021917,2]
[311874160,1705482648648,-500.0,0.00021917,2]
[311874161,1705482648657,-500.0,0.00021917,2]
[311874162,1705482648667,-855.01,0.00021917,2]
[311874163,1705482648677,-1879.36,0.00021917,2]
[311874164,1705482648687,-3044.4,0.00021917,2]
[311874165,1705482648696,-500.0,0.00021917,2]
[311874166,1705482648706,-500.0,0.00021917,2]
[311874167,1705482648716,-500.0,0.00021917,2]
[311874168,1705482648726,-500.0,0.00021917,2]
[311874169,1705482648735,-659.96,0.00021917,2]
[311874170,1705482648745,-807.87,0.00021917,2]
[311874171,1705482648754,-504.64498933,0.00021917,2]
[311874172,1705482648763,-500.0,0.00021917,2]
[311874173,1705482648772,-500.0,0.00021917,2]
[311874174,1705482648782,-2389.19,0.00021917,2]
[311874175,1705482648791,-500.0,0.00021917,2]
[311874176,1705482648800,-174.02292783,0.00021917,2]
[311874177,1705482648808,-1759.28,0.00021917,2]
[311874178,1705482648818,-1486.55,0.00021917,2]
[311874179,1705482648827,-500.0,0.00021917,2]
[311874180,1705482648837,-500.0,0.00021917,2]
[311874181,1705482648846,-513.91882553,0.00021917,2]
[311874182,1705482648855,-1439.12,0.00021917,2]
[311874183,1705482648864,-501.58432659,0.00021917,2]
[311874184,1705482648873,-2224.85,0.00021917,2]
[311874185,1705482648883,-2212.3,0.00021917,2]
[311874186,1705482648891,-500.0,0.00021917,2]
[311874187,1705482648901,-500.0,0.00021917,2]
[311874188,1705482648910,-502.5148758,0.00021917,2]
[311874189,1705482648920,-503.22865434,0.00021917,2]
[311874190,1705482648929,-516.40333686,0.00021917,2]
[311874191,1705482648938,-1340.28,0.00021917,2]
[311874192,1705482648947,-2260.1,0.00021917,2]
[311874193,1705482648956,-1174.78,0.00021917,2]
[311874194,1705482648965,-949.17,0.00021917,2]
[311874195,1705482648974,-1624.15,0.00021917,2]
[311874196,1705482648988,-500.0,0.00021917,2]
[311874197,1705482648997,-500.0,0.00021917,2]
[311874198,1705482649006,-500.0,0.00021917,2]
[311874199,1705482649016,-500.0,0.00021917,2]
[311874200,1705482649026,-1848.83,0.00021917,2]
[311874201,1705482649035,-640.42053262,0.00021917,2]
[311874202,1705482649045,-500.0,0.00021917,2]
[311874203,1705482649054,-1910.1,0.00021917,2]
[311874204,1705482649064,-500.0,0.00021917,2]
[311874205,1705482649075,-500.0,0.00021917,2]
[311874206,1705482649084,-500.0,0.00021917,2]
[311874207,1705482649093,-500.0,0.00021917,2]
[311874208,1705482649103,-532.19,0.00021917,2]
[311874209,1705482649112,-500.0,0.00021917,2]
[311874210,1705482649121,-1994.5,0.00021917,2]
[311874211,1705482649131,-1962.37,0.00021917,2]
[311874212,1705482649140,-500.0,0.00021917,2]
[311874213,1705482649150,-500.0,0.00021917,2]
[311874214,1705482649160,-513.94618602,0.00021917,2]
[311874215,1705482649169,-1767.25,0.00021917,2]
[311874216,1705482649178,-500.0,0.00021917,2]
[311874217,1705482649188,-1148.84,0.00021917,2]
[311874218,1705482649197,-2029.99,0.00021917,2]
[311874219,1705482649207,-3100.49,0.00021917,2]
[311874220,1705482649218,-1198.19,0.00021917,2]
[311874221,1705482649227,-597.3,0.00021917,2]
[311874222,1705482649237,-637.39,0.00021917,2]
[311874223,1705482649246,-504.2,0.00021917,2]
[311874224,1705482649257,-4500.34,0.00021917,2]
[311874225,1705482649266,-3433.43,0.00021917,2]
[311874226,1705482649276,-500.0,0.00021917,2]
[311874227,1705482649285,-500.0,0.00021917,2]
[311874228,1705482649296,-500.0,0.00021917,2]
[311874229,1705482649306,-500.0,0.00021917,2]
[311874230,1705482649315,-1057.04,0.00021917,2]
[311874231,1705482649325,-500.0,0.00021917,2]
[311874232,1705482649334,-500.0,0.00021917,2]
[311874233,1705482649343,-500.0,0.00021917,2]
[311874234,1705482649353,-514.49313759,0.00021917,2]
[311874235,1705482649362,-941.24,0.00021917,2]
[311874236,1705482649372,-533.16,0.00021917,2]
[311874237,1705482649382,-533.16,0.00021917,2]
[311874238,1705482649391,-533.16,0.00021917,2]
[311874239,1705482649401,-2766.62,0.00021917,2]
[311874240,1705482649410,-533.16,0.00021917,2]
[311874241,1705482649420,-500.0,0.00021917,2]
[311874242,1705482649430,-4037.63,0.00021917,2]
[311874243,1705482649439,-522.66,0.00021917,2]
[311874244,1705482649450,-533.16,0.00021917,2]
[311874245,1705482649459,-8751.36,0.00021917,2]
[311874246,1705482649469,-533.16,0.00021917,2]
[311874247,1705482649478,-1067.43,0.00021917,2]
[311874248,1705482649488,-533.16,0.00021917,2]
[311874249,1705482649497,-533.16,0.00021917,2]
[311874250,1705482649507,-533.16,0.00021917,2]
[311874251,1705482649518,-533.16,0.00021917,2]
[311874252,1705482649529,-533.16,0.00021917,2]
[311874253,1705482649539,-533.16,0.00021917,2]
[311874254,1705482649549,-500.0,0.00021917,2]
[311874255,1705482649558,-4350.16,0.00021917,2]
[311874256,1705482649568,-533.16,0.00021917,2]
[311874257,1705482649577,-533.16,0.00021917,2]
[311874258,1705482649586,-533.16,0.00021917,2]
[311874259,1705482649596,-533.16,0.00021917,2]
[311874260,1705482649605,-533.16,0.00021917,2]
[311874261,1705482649615,-500.0,0.00021917,2]
[311874262,1705482649624,-533.16,0.00021917,2]
[311874263,1705482649633,-500.0,0.00021917,2]
[311874264,1705482649643,-3340.21,0.00021917,2]
[311874265,1705482649653,-500.0,0.00021917,2]
[311874266,1705482649663,-533.16,0.00021917,2]
[311874267,1705482649672,-533.16,0.00021917,2]
[311874268,1705482649681,-533.16,0.00021917,2]
[311874269,1705482649691,-533.16,0.00021917,2]
[311874270,1705482649701,-533.16,0.00021917,2]
[311874271,1705482649711,-500.0,0.00021917,2]
[311874272,1705482649719,-1261.83,0.00021917,2]
[311874273,1705482649729,-533.2843848,0.00021917,2]
[311874274,1705482649739,-6279.25,0.00021917,2]
[311874275,1705482649748,-542.32,0.00021917,2]
[311874276,1705482649758,-500.0,0.00021917,2]
[311874277,1705482649767,-1267.63,0.00021917,2]
[311874278,1705482649777,-618.48,0.00021917,2]
[311874279,1705482649787,-1451.9,0.00021917,2]
[311874280,1705482649796,-2084.15,0.00021917,2]
[311874281,1705482649806,-2517.02,0.00021917,2]
[311874282,1705482649815,-1579.99,0.00021917,2]
[311874283,1705482649828,-500.0,0.00021917,2]
[311874284,1705482649839,-1741.08,0.00021917,2]
[311874285,1705482649849,-1219.66,0.00021917,2]
[311874286,1705482649859,-3489.23,0.00021917,2]
[311874287,1705482649869,-500.0,0.00021917,2]
[311874288,1705482649879,-500.0,0.00021917,2]
[311874289,1705482649889,-418.84158485,0.00021917,2]
[311874290,1705482649898,-2090.46,0.00021917,2]
[311874291,1705482649908,-500.0,0.00021917,2]
[311874292,1705482649920,-501.24272568,0.00021917,2]
[311874293,1705482649930,-802.52,0.00021917,2]
[311874294,1705482649942,-1131.85,0.00021917,2]
[311874295,1705482649953,-904.04,0.00021917,2]
[311874296,1705482649963,-1076.46,0.00021917,2]
[311874297,1705482649972,-1937.8,0.00021917,2]
[311874298,1705482649981,-1763.77,0.00021917,5]
[311874299,1705482649991,-1346.39,0.00021917,2]
[311874300,1705482650000,-500.0,0.00021917,2]
[311874301,1705482650009,-1649.93,0.00021917,2]
[311874302,1705482650019,-1250.27,0.00021917,2]
[311874303,1705482650029,-620.38,0.00021917,2]
[311874304,1705482650038,-500.0,0.00021917,2]
[311874305,1705482650047,-443.24800839,0.00021917,2]
[311874306,1705482650057,-850.47,0.00021917,2]
[311874307,1705482650067,-500.0,0.00021917,2]
[311874308,1705482650076,-1367.92,0.00021917,2]
[311874309,1705482650085,-500.0,0.00021917,2]
[311874310,1705482650095,-243.92891075,0.00021917,2]
[311874311,1705482650104,-628.29178127,0.00021917,2]
[311874312,1705482650113,-500.0,0.00021917,2]
[311874313,1705482650123,-504.38,0.00021917,2]
[311874314,1705482650133,-1682.76,0.00021917,2]
[311874315,1705482650142,-508.85088455,0.00021917,2]
[311874316,1705482650151,-615.26,0.00021917,2]
[311874317,1705482650161,-500.0,0.00021917,2]
[311874318,1705482650171,-481.73970255,0.00021917,2]
[311874319,1705482650180,-546.46,0.00021917,2]
[311874320,1705482650190,-516.43,0.00021917,2]
[311874321,1705482650200,-3843.19,0.00021918,2]
[311874322,1705482650212,-159.37,0.00021928,2]
[311874323,1705482650222,-196.35190265,0.00021967,2]
[311874324,1705482650232,-521.68,0.0002197,2]
[311874325,1705482650242,-11544.15261872,0.00021991,2]
[311874326,1705482650252,-618.7073759,0.00022,2]
[311874327,1705482650261,-155.0,0.00022,2]
[311874328,1705482650270,-170.49,0.00022001,2]
[311874329,1705482650280,-800.0,0.00022013,2]
[311874330,1705482650291,-800.0,0.00022013,2]
[311874331,1705482650301,-204.11287,0.00022013,2]
[311874332,1705482650310,-800.0,0.00022013,2]
[311874333,1705482650320,-150.21663597,0.0002208,2]
[311874334,1705482650330,-160.91320218,0.00022091,2]
[311874335,1705482650340,-665.6696971,0.00022091,2]
[311874336,1705482650349,-264.33075549,0.00022091,2]
[311874337,1705482650358,-163.76009416,0.00022091,2]
[311874338,1705482650368,-171.57243072,0.00022091,5]
[311874339,1705482650377,-170.49,0.00022109,2]
[311874340,1705482650387,-205.0,0.00022132,5]
[311874341,1705482650396,-500.0,0.00022133,2]
[311874342,1705482650406,-11544.15261872,0.00022166,2]
[311874343,1705482650415,-1647.1924248,0.00022189,2]
[311874344,1705482650424,-500.0,0.0002219,2]
[311874345,1705482650434,-159.31912069,0.0002219,2]
[311874346,1705482650443,-300.0,0.0002219,2]
[311874347,1705482650452,-306.78929771,0.0002219,2]
[311874348,1705482650461,-1166783.19508727,0.00022191,3]
[311874349,1705482650472,-151.0,0.00022191,7]
[311874350,1705482650481,-151.0,0.00022191,7]
[311874351,1705482650491,-151.0,0.00022191,7]
[311874352,1705482650501,-7447.48125851,0.00022191,2]
[311874353,1705482650511,-544.00662593,0.00022191,2]
[311874354,1705482650520,-482.15245961,0.00022191,4]
[311874355,1705482650529,-500.0,0.00022191,2]
[311874356,1705482650539,-505.85071059,0.00022191,2]
[311874357,1705482650549,-500.0,0.00022191,2]
[311874358,1705482650558,-272.43220385,0.00022191,2]
[311874359,1705482650568,-500.0,0.00022191,2]
[311874360,1705482650579,-500.0,0.00022191,2]
[311874361,1705482650590,-500.0,0.00022191,2]
[311874362,1705482650600,-500.0,0.00022191,2]
[311874363,1705482650610,-1256.6,0.00022191,2]
[311874364,1705482650620,-500.0,0.00022191,2]
[311874365,1705482650631,-649.0,0.00022191,2]
[311874366,1705482650641,-631.68,0.00022191,2]
[311874367,1705482650650,-500.0,0.00022191,2]
[311874368,1705482650661,-868.62,0.00022191,2]
[311874369,1705482650672,-695.14,0.00022191,2]
[311874370,1705482650683,-500.0,0.00022191,2]
[311874371,1705482650693,-578.83,0.00022191,2]
[311874372,1705482650705,-500.0,0.00022191,2]
[311874373,1705482650715,-500.0,0.00022191,2]
[311874374,1705482650726,-500.0,0.00022191,2]
[311874375,1705482650737,-500.0,0.00022191,2]
[311874376,1705482650747,-1247.54,0.00022191,2]
[311874377,1705482650758,-500.0,0.00022191,2]
[311874378,1705482650769,-500.0,0.00022191,2]
[311874379,1705482650780,-500.0,0.00022191,2]
[311874380,1705482650791,-500.0,0.00022191,2]
[311874381,1705482650801,-500.0,0.00022191,2]
[311874382,1705482650812,-500.0,0.00022191,2]
[311874383,1705482650823,-500.0,0.00022191,2]
[311874384,1705482650834,-642.94,0.00022191,2]
[311874385,1705482650844,-500.0,0.00022191,2]
[311874386,1705482650855,-792.57,0.00022191,2]
[311874387,1705482650865,-700.19,0.00022191,2]
[311874388,1705482650875,-945.73,0.00022191,2]
[311874389,1705482650886,-648.15577476,0.00022191,2]
[311874390,1705482650896,-319.56,0.00022191,2]
[311874391,1705482650906,-771.82,0.00022191,2]
[311874392,1705482650917,-1027.45,0.00022191,2]
[311874393,1705482650927,-500.0,0.00022191,2]
[311874394,1705482650937,-500.0,0.00022191,2]
[311874395,1705482650947,-718.24,0.00022191,2]
[311874396,1705482650957,-500.0,0.00022191,2]
[311874397,1705482650968,-635.26,0.00022191,2]
[311874398,1705482650979,-500.0,0.00022191,2]
[311874399,1705482650989,-500.0,0.00022191,2]
[311874400,1705482651000,-500.0,0.00022191,2]
[311874401,1705482651010,-707.56,0.00022191,2]
[311874402,1705482651020,-500.0,0.00022191,2]
[311874403,1705482651031,-500.0,0.00022191,2]
[311874404,1705482651042,-500.0,0.00022191,2]
[311874405,1705482651052,-500.0,0.00022191,2]
[311874406,1705482651063,-538.78,0.00022191,2]
[311874407,1705482651074,-500.0,0.00022191,2]
[311874408,1705482651086,-500.0,0.00022191,2]
[311874409,1705482651096,-500.0,0.00022191,2]
[311874410,1705482651107,-500.0,0.00022191,2]
[311874411,1705482651117,-500.0,0.00022191,2]
[311874412,1705482651127,-783.12,0.00022191,2]
[311874413,1705482651137,-629.42,0.00022191,2]
[311874414,1705482651148,-500.0,0.00022191,2]
[311874415,1705482651158,-500.0,0.00022191,2]
[311874416,1705482651169,-529.62054769,0.00022191,2]
[311874417,1705482651179,-500.0,0.00022191,2]
[311874418,1705482651190,-500.0,0.00022191,2]
[311874419,1705482651202,-500.0,0.00022191,2]
[311874420,1705482651218,-500.0,0.00022191,2]
[311874421,1705482651228,-500.0,0.00022191,2]
[311874422,1705482651239,-500.0,0.00022191,2]
[311874423,1705482651250,-500.0,0.00022191,2]
[311874424,1705482651261,-500.0,0.00022191,2]
[311874425,1705482651271,-500.0,0.00022191,2]
[311874426,1705482651281,-526.49,0.00022191,2]
[311874427,1705482651294,-559.47,0.00022191,2]
[311874428,1705482651304,-500.0,0.00022191,2]
[311874429,1705482651314,-689.09,0.00022191,2]
[311874430,1705482651325,-500.0,0.00022191,2]
[311874431,1705482651335,-500.0,0.00022191,2]
[311874432,1705482651345,-500.0,0.00022191,2]
[311874433,1705482651355,-500.0,0.00022191,2]
[311874434,1705482651365,-500.0,0.00022191,2]
[311874435,1705482651375,-500.0,0.00022191,2]
[311874436,1705482651386,-574.20560836,0.00022191,2]
[311874437,1705482651397,-500.0,0.00022191,2]
[311874438,1705482651408,-500.0,0.00022191,2]
[311874439,1705482651417,-500.0,0.00022191,2]
[311874440,1705482651428,-500.0,0.00022191,2]
[311874441,1705482651437,-541.66,0.00022191,2]
[311874442,1705482651448,-569.36,0.00022191,2]
[311874443,1705482651458,-500.0,0.00022191,2]
[311874444,1705482651469,-500.0,0.00022191,2]
[311874445,1705482651482,-1287.26,0.00022191,2]
[311874446,1705482651492,-500.0,0.00022191,2]
[311874447,1705482651502,-553.8,0.00022191,2]
[311874448,1705482651513,-735.06,0.00022191,2]
[311874449,1705482651522,-500.0,0.00022191,2]
[311874450,1705482651533,-500.0,0.00022191,2]
[311874451,1705482651544,-534.21622322,0.00022191,2]
[311874452,1705482651554,-344.28987887,0.00022191,2]
[311874453,1705482651565,-507.48532182,0.00022191,2]
[311874454,1705482651576,-824.69,0.00022191,2]
[311874455,1705482651587,-277.32,0.00022191,2]
[311874456,1705482651598,-500.0,0.00022191,2]
[311874457,1705482651610,-500.0,0.00022191,2]
[311874458,1705482651620,-500.0,0.00022191,2]
[311874459,1705482651630,-2064.35,0.00022191,2]
[311874460,1705482651641,-597.72,0.00022191,2]
[311874461,1705482651652,-500.0,0.00022191,2]
[311874462,1705482651663,-781.58,0.00022191,2]
[311874463,1705482651673,-500.0,0.00022191,2]
[311874464,1705482651684,-500.0,0.00022191,2]
[311874465,1705482651695,-500.0,0.00022191,2]
[311874466,1705482651705,-1460.74,0.00022191,2]
[311874467,1705482651716,-595.74,0.00022191,2]
[311874468,1705482651726,-500.0,0.00022191,2]
[311874469,1705482651737,-701.71,0.00022191,2]
[311874470,1705482651747,-500.0,0.00022191,2]
[311874471,1705482651758,-1249.05,0.00022191,2]
[311874472,1705482651768,-996.32,0.00022191,2]
[311874473,1705482651778,-500.0,0.00022191,2]
[311874474,1705482651789,-500.0,0.00022191,2]
[311874475,1705482651799,-500.0,0.00022191,2]
[311874476,1705482651810,-979.98,0.00022191,2]
[311874477,1705482651820,-1106.09,0.00022191,2]
[311874478,1705482651830,-808.85,0.00022191,2]
[311874479,1705482651840,-824.91,0.00022191,2]
[311874480,1705482651851,-1010.47,0.00022191,2]
[311874481,1705482651861,-500.0,0.00022191,2]
[311874482,1705482651871,-1259.34,0.00022191,2]
[311874483,1705482651882,-1152.3,0.00022191,2]
[311874484,1705482651893,-500.0,0.00022191,2]
[311874485,1705482651904,-500.0,0.00022191,2]
[311874486,1705482651914,-872.46,0.00022191,2]
[311874487,1705482651926,-500.0,0.00022191,2]
[311874488,1705482651937,-500.0,0.00022191,2]
[311874489,1705482651948,-500.0,0.00022191,2]
[311874490,1705482651958,-640.9,0.00022191,2]
[311874491,1705482651968,-500.0,0.00022191,2]
[311874492,1705482651979,-738.21,0.00022191,2]
[311874493,1705482651989,-500.0,0.00022191,2]
[311874494,1705482651999,-428.99655289,0.00022191,2]
[311874495,1705482652009,-1734.58,0.00022191,2]
[311874496,1705482652020,-500.0,0.00022191,2]
[311874497,1705482652030,-500.0,0.00022191,2]
[311874498,1705482652040,-500.0,0.00022191,2]
[311874499,1705482652050,-500.0,0.00022191,2]
[311874500,1705482652060,-500.0,0.00022191,2]
[311874501,1705482652070,-601.73084711,0.00022191,2]
[311874502,1705482652080,-500.0,0.00022191,2]
[311874503,1705482652090,-1000.0,0.00022191,7]
[311874504,1705482652100,-825.85,0.00022191,2]
[311874505,1705482652110,-969.22,0.00022191,2]
[311874506,1705482652120,-500.0,0.00022191,2]
[311874507,1705482652131,-624.91927977,0.00022191,2]
[311874508,1705482652141,-500.0,0.00022191,2]
[311874509,1705482652151,-500.0,0.00022191,2]
[311874510,1705482652161,-500.0,0.00022191,2]
[311874511,1705482652171,-500.0,0.00022191,2]
[311874512,1705482652181,-1077.99,0.00022191,2]
[311874513,1705482652192,-500.0,0.00022191,2]
[311874514,1705482652202,-559.37,0.00022191,2]
[311874515,1705482652214,-500.0,0.00022191,2]
[311874516,1705482652226,-1338.92,0.00022191,2]
[311874517,1705482652236,-500.0,0.00022191,2]
[311874518,1705482652247,-509.54,0.00022191,2]
[311874519,1705482652258,-1759.64,0.00022191,2]
[311874520,1705482652269,-965.99,0.00022191,2]
[311874521,1705482652279,-1246.63,0.00022191,2]
[311874522,1705482652289,-500.0,0.00022191,2]
[311874523,1705482652300,-767.06,0.00022191,2]
[311874524,1705482652311,-500.0,0.00022191,2]
[311874525,1705482652323,-500.0,0.00022191,2]
[311874526,1705482652332,-500.0,0.00022191,2]
[311874527,1705482652343,-500.0,0.00022191,2]
[311874528,1705482652355,-675.44,0.00022191,2]
[311874529,1705482652365,-919.05,0.00022191,2]
[311874530,1705482652375,-500.0,0.00022191,2]
[311874531,1705482652386,-500.0,0.00022191,2]
[311874532,1705482652396,-500.0,0.00022191,2]
[311874533,1705482652406,-508.55829176,0.00022191,2]
[311874534,1705482652416,-769.04,0.00022191,2]
[311874535,1705482652426,-500.0,0.00022191,2]
[311874536,1705482652436,-634.33,0.00022191,2]
[311874537,1705482652446,-1220.55,0.00022191,2]
[311874538,1705482652457,-500.0,0.00022191,2]
[311874539,1705482652467,-500.0,0.00022191,2]
[311874540,1705482652478,-779.51,0.00022191,2]
[311874541,1705482652489,-957.75,0.00022191,2]
[311874542,1705482652500,-789.87,0.00022191,2]
[311874543,1705482652511,-500.0,0.00022191,2]
[311874544,1705482652521,-500.0,0.00022191,2]
[311874545,1705482652532,-500.0,0.00022191,2]
[311874546,1705482652542,-795.49,0.00022191,2]
[311874547,1705482652553,-600.02,0.00022191,2]
[311874548,1705482652563,-665.77,0.00022191,2]
[311874549,1705482652575,-612.59,0.00022191,2]
[311874550,1705482652586,-814.6,0.00022191,2]
[311874551,1705482652597,-500.0,0.00022191,2]
[311874552,1705482652608,-500.0,0.00022191,2]
[311874553,1705482652619,-500.0,0.00022191,2]
[311874554,1705482652630,-916.02,0.00022191,2]
[311874555,1705482652641,-522.28,0.00022191,2]
[311874556,1705482652651,-777.17,0.00022191,2]
[311874557,1705482652663,-534.73,0.00022191,2]
[311874558,1705482652673,-500.0,0.00022191,2]
[311874559,1705482652684,-922.18,0.00022191,2]
[311874560,1705482652694,-500.0,0.00022191,2]
[311874561,1705482652705,-1000.3,0.00022191,2]
[311874562,1705482652716,-500.0,0.00022191,2]
[311874563,1705482652727,-637.35,0.00022191,2]
[311874564,1705482652738,-500.0,0.00022191,2]
[311874565,1705482652750,-578.52,0.00022191,2]
[311874566,1705482652760,-987.35,0.00022191,2]
[311874567,1705482652770,-1028.03,0.00022191,2]
[311874568,1705482652780,-500.0,0.00022191,2]
[311874569,1705482652790,-509.76,0.00022191,2]
[311874570,1705482652800,-574.44,0.00022191,2]
[311874571,1705482652810,-619.01,0.00022191,2]
[311874572,1705482652820,-1227.75,0.00022191,2]
[311874573,1705482652830,-500.0,0.00022191,2]
[311874574,1705482652839,-709.16,0.00022191,2]
[311874575,1705482652849,-500.0,0.00022191,2]
[311874576,1705482652859,-774.97,0.00022191,2]
[311874577,1705482652869,-1002.02,0.00022191,2]